bitfinex-derivatives/quotes_ETHF0:USTF0_20251216
["timestamp","ask_amount","ask_price","bid_price","bid_amount"]
[1765859986739,5.55981616,2909.2,2908.4,4.47715375]
[1765859987038,9.496,2908.5,2908.4,0.00515375]
[1765859987232,4.6478,2908.5,2908.4,0.00515375]
[1765859987735,9.496,2908.5,2908.4,0.00515375]
[1765859991135,11.61394,2908.5,2907.6,5.9431]
[1765859991335,0.17194,2908.5,2907.6,5.9431]
[1765859991543,3.2078,2908.3,2907.6,5.9431]
[1765859992243,3.2078,2908.3,2907.7,0.00515375]
[1765859993747,0.17194,2908.5,2908.0,2.9129]
[1765859994045,0.17194,2908.5,2908.0,6.1207]
[1765859994746,3.2078,2908.7,2908.0,6.1207]
[1765859995135,3.2078,2908.7,2908.0,8.8507]
[1765859995334,3.2078,2908.7,2908.0,8.6907]
[1765859995540,9.496,2908.1,2908.0,3.2078]
[1765859995741,9.496,2908.1,2907.7,0.00515375]
[1765859995742,9.496,2907.8,2907.7,0.00515375]
[1765859995944,12.7038,2907.8,2907.7,0.00515375]
[1765859996434,9.496,2907.8,2907.7,0.00515375]
[1765859998744,3.2078,2908.1,2907.7,9.04605375]
[1765859999251,3.2078,2908.1,2908.0,7.3849]
[1765859999641,3.2078,2908.4,2908.0,7.3849]
[1765860000647,3.2078,2908.4,2908.3,9.0409]
[1765860000951,3.2078,2908.7,2908.6,9.0409]
[1765860001246,3.2078,2909.0,2908.9,9.0409]
[1765860001440,0.00904077,2909.2,2909.1,9.0409]
[1765860001640,9.496,2909.1,2908.5,2.9129]
[1765860001944,3.2078,2909.1,2908.5,2.9129]
[1765860004646,0.00904077,2909.2,2908.5,6.1207]
[1765860004848,0.00904077,2909.2,2908.8,3.2078]
[1765860005851,3.9927,2908.9,2908.8,3.2078]
[1765860007239,0.00904077,2909.2,2908.8,3.2078]
[1765860007240,0.00904077,2909.2,2909.1,4.2256]
[1765860007446,2.87438531,2909.5,2909.4,8.2442]
[1765860007763,3.2078,2909.8,2909.7,8.2442]
[1765860008053,3.2078,2910.1,2910.0,6.8532]
[1765860008750,3.21187423,2910.1,2910.0,10.87606352]
[1765860010952,0.00515375,2910.3,2910.2,8.2442]
[1765860011942,0.00761389,2910.3,2910.2,8.2442]
[1765860012844,3.2078,2911.3,2910.8,8.2442]
[1765860013045,3.2078,2911.3,2910.8,11.452]
[1765860013455,0.17177,2911.5,2910.8,11.452]
[1765860013756,0.17558671,2911.5,2910.8,11.452]
[1765860014952,3.9927,2911.4,2911.3,3.2078]
[1765860015149,0.00381671,2911.5,2911.4,8.2442]
[1765860015752,0.00381671,2911.5,2911.4,4.2256]
[1765860016645,3.99651671,2911.5,2911.4,4.2256]
[1765860018552,0.00381671,2911.5,2911.4,8.2442]
[1765860021156,8.0098,2911.4,2911.3,3.2078]
[1765860021954,3.9927,2911.4,2911.3,7.4334]
[1765860022457,8.0098,2911.4,2911.3,3.2078]
[1765860023360,3.9927,2911.4,2911.3,7.4334]
[1765860023554,8.0098,2911.4,2911.3,7.4334]
[1765860023859,8.0098,2911.4,2911.3,3.2078]
[1765860025360,3.9927,2911.4,2911.3,3.2078]
[1765860025555,8.0098,2911.4,2911.3,3.2078]
[1765860025751,0.17558671,2911.5,2911.4,4.2256]
[1765860025958,8.18538671,2911.5,2911.4,4.2256]
[1765860026359,8.0098,2911.4,2911.3,3.2078]
[1765860027563,0.00381671,2911.5,2911.4,8.2442]
[1765860028158,3.99651671,2911.5,2911.4,8.2442]
[1765860028655,8.0098,2911.1,2911.0,7.4334]
[1765860028855,3.9927,2911.1,2911.0,7.4334]
[1765860029058,0.00381671,2911.5,2911.0,14.0796]
[1765860029664,0.00381671,2911.5,2911.4,8.2442]
[1765860030059,2.60941671,2911.5,2911.0,14.0796]
[1765860030559,0.00381671,2911.5,2911.0,14.0796]
[1765860031060,0.00381671,2911.5,2911.0,7.4334]
[1765860031061,3.9927,2911.1,2911.0,7.4334]
[1765860031255,4.16448,2911.3,2911.2,4.2256]
[1765860031664,3.9927,2911.3,2911.2,4.2256]
[1765860031867,3.9927,2911.3,2911.2,8.2442]
[1765860032170,0.00381671,2911.5,2911.4,8.1749]
[1765860033066,7.8105,2911.1,2911.0,3.2078]
[1765860037665,7.98229,2911.1,2911.0,2.52958888]
[1765860037863,0.17179,2911.1,2910.5,2.3702]
[1765860039567,4.0289,2910.6,2910.5,10.4206]
[1765860039769,1.6228,2911.0,2910.5,10.4206]
[1765860043778,0.17179,2911.1,2910.5,10.4206]
[1765860043979,4.20069,2911.1,2911.0,8.0504]
[1765860044380,7.98229,2911.1,2910.5,2.3702]
[1765860044579,0.92766146,2911.0,2910.5,2.3702]
[1765860044781,0.17179,2911.1,2910.5,2.3702]
[1765860045682,7.98229,2911.1,2911.0,8.0504]
[1765860046085,8.90995146,2911.1,2910.5,2.3702]
[1765860046385,0.92766146,2911.0,2910.5,2.3702]
[1765860046583,0.17179,2911.1,2910.5,2.3702]
[1765860047180,7.98229,2911.1,2911.0,3.9828]
[1765860047381,0.00381671,2911.5,2911.1,8.0504]
[1765860047584,8.91627368,2911.5,2911.4,3.9828]
[1765860047988,8.91627368,2911.5,2911.4,8.0504]
[1765860049192,8.91627368,2911.5,2911.4,3.9828]
[1765860049985,8.91627368,2911.5,2911.0,2.3702]
[1765860050186,0.93018697,2911.4,2911.0,2.3702]
[1765860050487,7.98608671,2911.5,2911.4,8.0504]
[1765860050685,8.91627368,2911.5,2911.4,8.0504]
[1765860050990,8.91627368,2911.5,2911.4,3.9828]
[1765860053995,0.17558671,2911.5,2911.4,8.0504]
[1765860054592,4.20448671,2911.5,2911.4,8.0504]
[1765860056295,7.98608671,2911.5,2911.4,3.9828]
[1765860057698,7.98608671,2911.5,2911.4,8.0504]
[1765860057898,7.98608671,2911.5,2911.4,3.9828]
[1765860060000,7.98608671,2911.5,2911.4,8.0504]
[1765860060196,7.98608671,2911.5,2910.7,8.0504]
[1765860060197,7.8105,2910.8,2910.7,8.0504]
[1765860060397,4.0289,2910.8,2910.7,8.0504]
[1765860060697,2.50929283,2911.1,2910.7,8.0504]
[1765860060896,10.31979283,2911.1,2911.0,3.9828]
[1765860061102,0.00381671,2911.5,2911.4,8.0504]
[1765860061895,4.03271671,2911.5,2911.4,8.0504]
[1765860062101,7.81431671,2911.5,2911.4,8.0504]
[1765860062401,0.00381671,2911.5,2911.4,8.0504]
[1765860064200,3.2078,2911.9,2911.8,7.4526]
[1765860065102,10.5484,2912.2,2912.1,7.4526]
[1765860065297,6.96620577,2912.2,2912.1,7.45671566]
[1765860065503,3.21140577,2912.2,2912.1,7.45671566]
[1765860066005,0.00360577,2912.2,2912.1,16.25671566]
[1765860066694,5.77e-06,2912.2,2912.1,16.25671566]
[1765860066899,5.77e-06,2912.2,2912.1,20.72554241]
[1765860068308,5.77e-06,2912.2,2912.1,10.25671566]
[1765860068605,5.77e-06,2912.2,2912.1,10.06671566]
[1765860069002,7.34060577,2912.2,2912.1,3.81831566]
[1765860069397,5.77e-06,2912.2,2912.1,7.45671566]
[1765860069597,5.77e-06,2912.2,2912.1,0.00411566]
[1765860069998,5.77e-06,2912.2,2912.1,8.73411566]
[1765860070204,5.77e-06,2912.2,2912.1,13.25142651]
[1765860070604,3.2078,2913.8,2912.1,13.42315651]
[1765860070801,3.2078,2913.8,2913.7,7.4526]
[1765860071004,7.3406,2913.6,2913.1,3.2078]
[1765860071209,3.7548,2912.9,2912.8,7.022]
[1765860071399,7.51228,2912.9,2912.8,2.34291649]
[1765860071605,3.5858,2912.2,2911.5,2.2159]
[1765860071804,6.7936,2912.2,2911.5,2.2159]
[1765860072006,0.00515375,2912.1,2911.6,0.00515375]
[1765860072606,0.00515375,2912.1,2911.6,0.00900281]
[1765860073011,0.00515375,2912.1,2912.0,3.8142]
[1765860073307,0.00515375,2912.1,2911.6,10.66940281]
[1765860076108,7.34575375,2912.1,2911.6,3.21680281]
[1765860076307,3.7548,2911.7,2911.6,7.03100281]
[1765860076610,0.00515375,2912.1,2911.6,10.66940281]
[1765860077308,7.3406,2911.7,2911.6,3.21680281]
[1765860077507,7.3406,2911.1,2910.7,3.2078]
[1765860077806,3.7548,2910.6,2910.5,3.8142]
[1765860078611,3.75797445,2910.6,2910.5,3.8175674]
[1765860078907,7.34377445,2910.6,2910.5,0.0033674]
[1765860079104,7.3406,2910.4,2910.3,0.00515375]
[1765860079311,12.88590283,2910.4,2909.5,2.2159]
[1765860079503,3.2078,2910.1,2909.5,2.2559]
[1765860079708,3.2078,2910.4,2910.3,3.8142]
[1765860079912,6.9626,2910.4,2910.0,2.2159]
[1765860080108,10.5484,2910.1,2910.0,0.00403028]
[1765860080714,3.2078,2910.4,2910.0,9.67253028]
[1765860081913,0.00515375,2910.5,2910.3,3.8142]
[1765860082611,3.75995375,2910.5,2910.4,3.8142]
[1765860082811,0.00515375,2910.5,2910.4,7.4526]
[1765860084513,2.33750283,2911.2,2910.4,7.4526]
[1765860084514,3.2078,2911.4,2911.3,3.8142]
[1765860084714,6.9626,2911.4,2911.3,3.8142]
[1765860084907,10.5484,2911.4,2910.7,3.2078]
[1765860085513,0.00515375,2911.3,2910.7,3.2078]
[1765860086606,0.00515375,2911.3,2911.2,7.4526]
[1765860087211,0.00515375,2911.3,2911.2,10.6604]
[1765860088314,0.00515375,2911.3,2911.2,7.4526]
[1765860090318,0.00515375,2911.3,2911.2,10.6604]
[1765860091223,3.75995375,2911.3,2911.2,3.2078]
[1765860091424,3.75995375,2911.3,2911.2,7.022]
[1765860092818,3.75995375,2911.3,2911.2,10.6604]
[1765860093014,0.00515375,2911.3,2911.2,10.6604]
[1765860097432,7.42145375,2911.3,2911.2,10.6604]
[1765860097624,7.42145375,2911.3,2911.2,7.022]
[1765860098125,3.62285375,2911.3,2911.2,10.4709]
[1765860100428,7.42145375,2911.3,2911.2,3.8142]
[1765860102021,3.6177,2910.6,2910.5,9.2086]
[1765860102215,0.00515375,2911.3,2911.2,6.9927]
[1765860112038,3.62285375,2911.3,2911.2,6.9927]
[1765860112338,0.00515375,2911.3,2911.2,6.9927]
[1765860112539,0.00515375,2911.3,2911.2,7.1727]
[1765860112737,0.00515375,2911.3,2911.2,7.2027]
[1765860113032,0.00515375,2911.3,2911.2,9.7527]
[1765860113231,0.00515375,2911.3,2911.2,6.9927]
[1765860113737,0.00274413,2911.4,2911.3,6.9927]
[1765860113936,0.00274413,2911.4,2911.3,10.2005]
[1765860115135,4.413e-05,2911.4,2911.3,13.0105]
[1765860115340,0.00515375,2911.6,2911.5,9.2376]
[1765860115639,3.2078,2912.0,2911.9,6.9927]
[1765860116333,3.2122009,2912.0,2911.9,6.9927]
[1765860118236,0.0044009,2912.0,2911.9,6.9927]
[1765860120037,0.0044009,2912.0,2911.9,10.2005]
[1765860121543,0.0044009,2912.0,2911.9,12.7705]
[1765860122042,0.1717,2912.6,2912.5,8.8902]
[1765860122543,10.0699,2912.9,2912.8,3.5438]
[1765860122937,10.07330095,2912.9,2912.8,3.54749963]
[1765860123640,10.07330095,2912.9,2912.8,0.00369963]
[1765860125447,3.21120095,2912.9,2912.8,6.71179963]
[1765860125846,9.61260095,2912.9,2912.8,0.00369963]
[1765860128047,9.78428095,2912.9,2912.8,0.00369963]
[1765860128646,3.2444,2912.0,2911.7,0.00515375]
[1765860128849,3.157,2911.8,2911.7,6.71325375]
[1765860129246,6.4014,2911.8,2911.7,6.71325375]
[1765860129545,6.4014,2911.8,2911.7,0.00515375]
[1765860129742,6.4014,2911.8,2911.7,0.00766973]
[1765860136347,3.157,2911.8,2911.7,6.71576973]
[1765860136554,3.157,2912.0,2911.9,6.7081]
[1765860136855,6.4014,2912.0,2911.9,3.4376]
[1765860137152,6.4014,2912.0,2911.7,0.00766973]
[1765860137153,6.4014,2911.8,2911.7,6.71576973]
[1765860137553,6.4014,2911.8,2911.7,3.44526973]
[1765860137754,6.4014,2911.8,2911.7,0.00766973]
[1765860138248,6.3648,2912.0,2911.9,3.4376]
[1765860138453,6.3648,2912.3,2912.2,6.7081]
[1765860138649,3.2078,2912.3,2912.2,6.7081]
[1765860139052,6.4014,2911.8,2911.7,0.00766973]
[1765860139459,6.4014,2911.8,2911.7,3.44526973]
[1765860140559,9.6092,2912.0,2911.9,6.7081]
[1765860141259,6.4014,2911.8,2911.7,0.00766973]
[1765860142554,9.6092,2912.0,2911.9,3.4376]
[1765860142858,3.157,2911.8,2911.7,6.71576973]
[1765860143757,6.3648,2912.4,2912.3,3.4376]
[1765860143963,9.6092,2912.4,2912.3,6.7081]
[1765860144364,9.6092,2912.4,2912.3,3.4376]
[1765860144765,3.157,2912.1,2912.0,8.723]
[1765860145464,3.2078,2912.4,2912.0,8.723]
[1765860145668,9.6092,2912.4,2912.3,6.7081]
[1765860145967,6.4014,2912.4,2912.3,6.7081]
[1765860146168,6.4014,2912.4,2912.3,3.4376]
[1765860147664,6.4014,2912.4,2912.3,6.7081]
[1765860147868,3.157,2912.4,2912.3,6.7081]
[1765860148070,6.4014,2912.4,2912.3,6.7081]
[1765860148564,6.4014,2912.4,2912.3,3.4376]
[1765860149462,3.157,2912.1,2912.0,8.723]
[1765860149664,6.4014,2912.1,2912.0,8.723]
[1765860150064,3.157,2912.1,2912.0,8.723]
[1765860152169,3.3795,2912.7,2912.0,8.723]
[1765860152377,9.2047,2912.7,2912.6,5.8987]
[1765860153059,5.9969,2912.7,2912.6,5.8987]
[1765860153771,2.9188,2912.7,2912.6,5.8987]
[1765860154675,6.00030095,2912.9,2912.8,5.8987]
[1765860155066,0.00340095,2912.9,2912.8,5.8987]
[1765860155668,2.92220095,2912.9,2912.8,5.8987]
[1765860155973,0.00340095,2912.9,2912.8,5.8987]
[1765860156777,10.72685782,2913.7,2913.6,2.8219]
[1765860156972,10.72685782,2913.7,2913.6,5.8987]
[1765860157276,10.72685782,2913.7,2913.6,2.8219]
[1765860157477,9.2047,2913.7,2913.6,2.8219]
[1765860157682,7.824,2913.5,2913.4,0.00515375]
[1765860157975,5.9969,2912.4,2912.3,3.2078]
[1765860158881,5.9969,2912.1,2912.0,7.9136]
[1765860159270,2.9188,2912.1,2912.0,7.9136]
[1765860159473,2.9188,2912.1,2912.0,11.1214]
[1765860159873,3.21295375,2912.6,2912.0,11.1214]
[1765860160569,6.00205375,2912.6,2912.5,2.8219]
[1765860160970,6.00205375,2912.6,2912.0,5.2227]
[1765860161781,6.00205375,2912.6,2912.2,3.2078]
[1765860161979,3.2078,2912.5,2912.0,2.0149]
[1765860165477,3.2078,2912.5,2911.8,0.00515375]
[1765860165478,5.9969,2911.9,2911.8,0.00515375]
[1765860165782,2.9188,2911.9,2911.8,5.90385375]
[1765860166083,0.17171,2912.4,2911.8,5.90385375]
[1765860166475,5.9969,2911.9,2911.8,5.90385375]
[1765860166782,0.17171,2912.4,2911.8,5.90385375]
[1765860167081,6.16861,2912.4,2912.0,1.7995]
[1765860167581,6.16861,2912.4,2912.3,2.8219]
[1765860167785,5.9969,2912.4,2912.3,5.8987]
[1765860167984,2.9188,2912.4,2912.3,5.8987]
[1765860169479,5.9969,2912.4,2912.3,2.8219]
[1765860170674,3.2078,2912.5,2912.0,4.8763]
[1765860170881,9.2047,2912.5,2912.0,1.7995]
[1765860171076,9.2047,2912.5,2912.4,5.8987]
[1765860172281,6.1266,2912.5,2912.4,5.8987]
[1765860172585,9.2047,2912.5,2912.0,1.7995]
[1765860172879,3.2078,2912.5,2912.0,7.6982]
[1765860173079,2.9188,2912.1,2912.0,7.6982]
[1765860173280,3.2078,2912.5,2912.0,7.6982]
[1765860174184,9.2047,2912.5,2912.4,2.8219]
[1765860174587,9.2047,2912.5,2912.0,1.7995]
[1765860177486,4.47577406,2912.4,2912.3,5.8987]
[1765860177677,5.9969,2912.4,2912.3,5.8987]
[1765860177982,2.9188,2912.4,2912.3,5.8987]
[1765860178880,6.1266,2912.5,2912.4,5.8987]
[1765860179280,9.2047,2912.5,2912.4,5.8987]
[1765860179588,9.2047,2912.5,2912.4,2.8219]
[1765860180191,9.2047,2912.5,2912.4,5.8987]
[1765860180990,3.2078,2912.5,2912.4,5.8987]
[1765860183889,8.5849,2912.5,2912.4,5.8987]
[1765860184795,5.8077,2912.5,2912.4,5.8987]
[1765860186087,8.5849,2912.5,2912.4,5.8987]
[1765860186389,8.5849,2912.5,2912.0,1.7995]
[1765860186591,2.5999,2912.3,2912.2,5.3617]
[1765860186891,5.8077,2912.5,2912.4,5.3617]
[1765860187290,8.5849,2912.5,2912.4,5.3617]
[1765860188195,5.8077,2912.5,2912.4,5.3617]
[1765860188883,3.2078,2912.5,2912.4,5.3617]
[1765860189090,5.8077,2912.5,2912.4,5.3617]
[1765860189289,3.2078,2912.5,2912.4,5.3617]
[1765860190593,0.00515375,2912.6,2912.5,6.9722]
[1765860190799,5.81203703,2913.5,2913.4,5.3617]
[1765860191189,3.21213703,2913.5,2913.4,5.3617]
[1765860191492,8.58923703,2913.5,2913.0,1.6105]
[1765860191698,4.15687406,2913.3,2913.2,5.3617]
[1765860192088,2.5999,2913.3,2913.2,5.3617]
[1765860193693,3.21213703,2913.5,2913.4,5.3617]
[1765860193900,5.81203703,2913.5,2913.4,5.3617]
[1765860194198,3.21213703,2913.5,2913.4,5.3617]
[1765860194592,0.00433703,2913.5,2913.4,5.3617]
[1765860195396,5.3771,2914.7,2914.6,2.7384]
[1765860195597,6.9344,2914.5,2914.4,0.00515375]
[1765860195795,8.49137406,2914.5,2914.4,0.00515375]
[1765860196393,8.49386937,2914.5,2914.4,0.00865428]
[1765860197490,6.93689531,2914.5,2914.4,0.00865428]
[1765860197797,6.93689531,2914.5,2914.4,2.74705428]
[1765860198798,6.93689531,2914.5,2914.4,0.00865428]
[1765860201807,6.93689531,2914.5,2914.4,2.74705428]
[1765860202005,2.60239531,2914.5,2914.4,5.37035428]
[1765860202305,0.00249531,2914.5,2914.4,5.37035428]
[1765860202506,0.00249531,2914.5,2914.4,8.57815428]
[1765860202706,6.4575,2915.0,2914.9,2.7384]
[1765860203207,5.3771,2914.8,2914.7,8.5695]
[1765860203805,5.38026551,2914.8,2914.7,8.5695]
[1765860204202,0.00316551,2914.8,2914.7,8.5695]
[1765860205505,5.8077,2915.4,2915.3,5.3617]
[1765860205705,8.5849,2915.7,2915.6,5.3617]
[1765860206006,5.3771,2915.7,2915.2,3.2078]
[1765860206306,4.7651,2916.0,2915.2,3.2078]
[1765860206307,2.5999,2915.3,2915.2,8.5695]
[1765860206509,2.6040354,2915.3,2915.2,8.5695]
[1765860207009,0.0041354,2915.3,2915.2,8.5695]
[1765860207406,5.3812354,2915.3,2915.2,3.2078]
[1765860209314,2.6040354,2915.3,2915.2,8.5695]
[1765860209508,5.3812354,2915.3,2915.2,8.5695]
[1765860209813,0.0041354,2915.3,2915.2,8.5695]
[1765860210214,2.6040354,2915.3,2915.2,8.5695]
[1765860210606,5.3812354,2915.3,2915.2,3.2078]
[1765860212016,2.6040354,2915.3,2915.2,8.5695]
[1765860212312,0.0041354,2915.3,2915.2,8.5695]
[1765860212506,5.0828354,2915.3,2915.2,8.5695]
[1765860213015,2.6299354,2915.3,2915.2,8.5695]
[1765860213220,0.0041354,2915.3,2915.2,8.5695]
[1765860214015,0.0041354,2915.3,2915.2,11.0395]
[1765860214322,2.6258,2915.3,2915.2,8.2025]
[1765860214519,5.0787,2915.3,2915.2,8.2025]
[1765860215119,5.08288786,2915.3,2915.2,8.2025]
[1765860215625,2.62998786,2915.3,2915.2,8.2025]
[1765860216420,0.00418786,2915.3,2915.2,8.2025]
[1765860217517,2.62998786,2915.3,2915.2,8.2025]
[1765860217713,5.08288786,2915.3,2915.2,8.2025]
[1765860218216,2.62998786,2915.3,2915.2,8.2025]
[1765860219016,5.08288786,2915.3,2915.2,8.2025]
[1765860219217,2.62998786,2915.3,2915.2,8.2025]
[1765860220019,0.00418786,2915.3,2915.2,8.2025]
[1765860221219,5.08288786,2915.3,2915.2,8.2025]
[1765860221516,5.08288786,2915.3,2915.2,3.2078]
[1765860222117,2.62998786,2915.3,2915.2,8.2025]
[1765860222319,0.00418786,2915.3,2915.2,8.2025]
[1765860222518,5.08288786,2915.3,2915.2,8.2025]
[1765860225127,2.62998786,2915.3,2915.2,8.2025]
[1765860225327,5.08288786,2915.3,2915.2,8.2025]
[1765860225821,5.08288786,2915.3,2915.2,3.2078]
[1765860228929,2.6258,2915.0,2914.9,8.2025]
[1765860229129,5.0787,2915.0,2914.9,8.2025]
[1765860229933,2.6258,2915.0,2914.9,8.2025]
[1765860230129,5.08288786,2915.3,2915.2,2.4712]
[1765860230330,0.00418786,2915.3,2915.2,8.2025]
[1765860230829,5.08288786,2915.3,2915.2,8.2025]
[1765860235830,5.08288786,2915.3,2915.2,5.679]
[1765860236037,5.08288786,2915.3,2915.2,3.2078]
[1765860237131,5.08288786,2915.3,2915.2,8.2025]
[1765860238834,5.08288786,2915.3,2915.2,3.2078]
[1765860239237,5.08288786,2915.3,2915.2,5.679]
[1765860239427,5.08288786,2915.3,2915.2,3.2078]
[1765860239627,5.08288786,2915.3,2915.2,5.679]
[1765860240837,5.08288786,2915.3,2915.2,3.2078]
[1765860241034,6.6512,2915.0,2914.9,5.679]
[1765860241427,6.6512,2915.0,2914.9,8.2025]
[1765860241941,6.6512,2915.0,2914.9,5.679]
[1765860243139,4.7547,2915.0,2914.9,7.8724]
[1765860243439,6.2084,2915.0,2914.9,7.8724]
[1765860243940,1.4537,2915.0,2914.6,3.2078]
[1765860244135,4.7547,2914.7,2914.6,3.2078]
[1765860245539,4.7547,2914.7,2914.6,5.4616]
[1765860246335,4.7547,2914.7,2914.6,7.8724]
[1765860248042,4.7547,2914.7,2914.6,5.4616]
[1765860248235,4.7547,2914.7,2914.6,3.2078]
[1765860248438,4.7547,2914.7,2914.6,5.4616]
[1765860248635,4.7547,2914.7,2914.6,7.8724]
[1765860251638,4.7547,2914.7,2914.6,2.2538]
[1765860251836,6.2084,2914.5,2913.8,3.2078]
[1765860253739,6.37999,2914.5,2913.8,3.2078]
[1765860253937,4.7547,2913.9,2913.8,3.2078]
[1765860254142,6.37999,2914.5,2914.4,2.2538]
[1765860254341,6.37999,2914.5,2914.0,0.8805]
[1765860254644,2.4489,2914.1,2914.0,5.5451]
[1765860254840,4.7547,2914.1,2914.0,4.66705106]
[1765860255149,2.4489,2914.1,2914.0,5.52535106]
[1765860255944,4.7547,2914.1,2914.0,4.66705106]
[1765860258747,4.92631,2914.1,2914.0,0.00245106]
[1765860259047,4.7547,2913.9,2913.8,3.21294439]
[1765860260051,0.00512252,2914.3,2914.2,4.6646]
[1765860260360,0.00512252,2914.3,2914.2,7.8724]
[1765860260752,0.00512252,2914.3,2914.2,4.6646]
[1765860261361,6.2084,2914.0,2913.9,7.8724]
[1765860261660,6.2084,2914.0,2913.9,3.2078]
[1765860261954,2.4489,2912.7,2912.6,7.8724]
[1765860262146,7.9625,2913.1,2913.0,2.2538]
[1765860262346,7.9625,2913.1,2913.0,6.0603]
[1765860262553,7.9625,2913.1,2912.3,3.2078]
[1765860262754,7.9625,2913.1,2913.0,2.2538]
[1765860262956,7.96662493,2913.1,2913.0,2.25745479]
[1765860263951,0.00412493,2913.1,2913.0,6.06395479]
[1765860266053,4.92638,2912.9,2912.8,4.439e-05]
[1765860266261,8.13418,2912.9,2912.8,4.439e-05]
[1765860266955,8.13418,2912.9,2912.8,0.00328395]
[1765860267162,4.7547,2912.1,2912.0,6.0603]
[1765860267659,2.4489,2912.1,2912.0,6.0603]
[1765860268262,2.4489,2912.1,2912.0,6.06430792]
[1765860270052,0.00514439,2912.3,2912.0,3.81050792]
[1765860270266,0.00514439,2912.3,2912.2,4.6646]
[1765860272158,4.7547,2912.1,2912.0,0.00400792]
[1765860272664,4.7547,2912.1,2912.0,2.29050792]
[1765860273061,4.7547,2912.1,2912.0,0.00400792]
[1765860273771,4.7547,2912.1,2912.0,2.30540792]
[1765860274664,2.4489,2912.1,2912.0,5.90140792]
[1765860274859,4.75224439,2912.3,2912.2,2.3014]
[1765860275059,0.00514439,2912.3,2912.2,4.5006]
[1765860275869,2.41064439,2912.3,2912.2,4.5006]
[1765860278465,0.00514439,2912.3,2912.2,4.5006]
[1765860279564,0.00514439,2912.3,2912.2,6.8606]
[1765860281763,0.00514439,2912.3,2912.2,10.0684]
[1765860285265,0.00514439,2912.3,2912.2,6.8606]
[1765860285465,0.00514439,2912.3,2912.2,10.0684]
[1765860291576,0.00514439,2912.3,2912.2,4.5006]
[1765860291971,2.41064439,2912.3,2912.2,4.5006]
[1765860292574,4.7471,2912.1,2912.0,0.00400792]
[1765860292978,4.7471,2912.1,2912.0,2.30540792]
[1765860293388,4.7471,2912.1,2912.0,4.50460792]
[1765860293679,4.7471,2912.1,2912.0,5.90140792]
[1765860294073,4.7471,2912.1,2912.0,3.70220792]
[1765860294871,4.7471,2911.9,2911.8,0.00514439]
[1765860295072,7.9549,2911.9,2911.8,0.00514439]
[1765860295377,8.87748535,2911.9,2911.8,0.00514439]
[1765860295971,8.87748535,2911.9,2911.8,0.00875766]
[1765860297982,5.66968535,2911.9,2911.8,0.00875766]
[1765860298179,7.9549,2911.9,2911.8,0.00875766]
[1765860302376,7.9549,2911.9,2911.8,4.14725766]
[1765860302578,5.6133,2911.9,2911.8,4.14725766]
[1765860302976,7.7386,2911.9,2911.8,4.14725766]
[1765860303181,7.7386,2911.9,2911.8,0.00875766]
[1765860303384,9.29630712,2911.9,2911.8,0.00875766]
[1765860304894,9.29625156,2911.9,2911.8,0.00875766]
[1765860308287,9.29625156,2911.9,2911.2,4.76545156]
[1765860308288,4.2141,2911.3,2911.2,3.2078]
[1765860308493,4.2141,2911.1,2910.8,3.2078]
[1765860308695,4.2141,2910.9,2910.8,7.3463]
[1765860309393,4.21842635,2910.9,2910.8,7.3500466]
[1765860309990,4.21842635,2910.9,2910.8,4.1422466]
[1765860310190,4.21842635,2910.9,2910.8,0.0037466]
[1765860310893,2.8840284,2911.2,2911.1,4.1385]
[1765860311192,5.2966,2911.9,2911.8,4.1385]
[1765860311597,7.4219,2911.9,2911.8,4.1385]
[1765860311998,7.42488883,2911.9,2911.8,4.1385]
[1765860312498,4.2141,2911.6,2911.1,3.2078]
[1765860312695,4.2141,2911.1,2911.0,3.2128]
[1765860312998,4.2141,2910.9,2910.8,4.1422466]
[1765860313596,4.2141,2910.9,2910.8,2.0291466]
[1765860314197,4.2141,2910.9,2910.8,0.0037466]
[1765860314596,4.2141,2910.7,2910.6,4.14364439]
[1765860314796,2.0888,2910.7,2910.6,4.14364439]
[1765860315596,7.4219,2911.6,2911.5,2.0254]
[1765860315798,3.21078883,2911.9,2911.8,4.1385]
[1765860316600,0.00298883,2911.9,2911.8,7.3463]
[1765860318698,0.00298883,2911.9,2911.8,9.7363]
[1765860318899,0.00514439,2912.3,2912.2,4.1385]
[1765860319099,0.00514439,2912.3,2912.2,9.6563]
[1765860319299,0.00514439,2912.3,2912.2,7.3463]
[1765860319902,2.09682671,2912.3,2912.2,4.1385]
[1765860320698,0.00802671,2912.3,2912.2,4.1385]
[1765860322810,0.00802671,2912.3,2912.2,6.9285]
[1765860323595,0.00802671,2912.3,2912.2,4.1385]
[1765860324700,0.00802671,2912.3,2912.2,6.6285]
[1765860325001,0.00802671,2912.3,2912.2,4.1385]
[1765860325702,2.09682671,2912.3,2912.2,4.1385]
[1765860326008,0.00802671,2912.3,2912.2,4.1385]
[1765860331009,3.2078,2912.9,2912.8,4.1385]
[1765860331313,3.2078,2913.2,2913.1,4.1385]
[1765860331808,2.0888,2913.2,2913.1,4.1385]
[1765860332000,5.2966,2913.5,2913.4,4.1385]
[1765860332197,5.3001605,2913.5,2913.4,4.1385]
[1765860332402,7.2042605,2913.5,2913.4,4.1385]
[1765860333405,3.8659,2913.2,2913.1,1.97597582]
[1765860333810,3.2113605,2913.5,2913.1,3.99527582]
[1765860334112,5.1731605,2913.5,2913.4,3.9921]
[1765860334313,1.9653605,2913.5,2913.4,3.9921]
[1765860334506,3.8694605,2913.5,2913.4,3.9921]
[1765860335803,0.0035605,2913.5,2913.4,3.9921]
[1765860336214,1.9653605,2913.5,2913.4,3.9921]
[1765860336516,3.8694605,2913.5,2913.4,3.9921]
[1765860338714,0.0035605,2913.5,2913.4,3.9921]
[1765860339113,1.9653605,2913.5,2913.4,3.9921]
[1765860340908,3.8694605,2913.5,2913.4,3.9921]
[1765860341612,1.9653605,2913.5,2913.4,3.9921]
[1765860341813,0.0035605,2913.5,2913.4,3.9921]
[1765860342017,3.8694605,2913.5,2913.4,3.9921]